Workbook

Sheet TOTAL GENERAL (2016-2020)
J1: Total por Línea/Eje
A2: CANTIDADES PREVISTAS CONVENIO INICIAL | B2: 13953149 | C2: 18323735.86 | D2: 18125579.23 | E2: 18269345.2 | F2: 18556877.15 | J2: =SUM(B2:I2) -> 87228686.44 | K2: SITUACIÓN AL
A3: TOTAL Programa justificado por el Cabildo FDCAN (16-20) | B3: =B368 -> 13855423.49 | C3: =C368 -> 15277028.37 | D3: 17890217.76 | E3: 17995388.8 | F3: 17560211.68 | H3: INDICADOR EJECUTADO | J3: =B3+C3+D3+E3+F3 -> 82578270.1 | K3: CIERRE CONVENIO
A4: Descripción de las actuaciones | B4: JUSTIFICADO FDCAN 2016 | C4: JUSTIFICADO FDCAN 2017 | D4: JUSTIFICADO FDCAN 2018 | E4: JUSTIFICADO FDCAN 2019 | F4: JUSTIFICADO FDCAN 2020 | G4: TM | H4: Denominac Indicador | I4: Cantidad ejecutada
A5: LÍNEA ESTRATÉGICA 1. CONOCIMIENTO I+D+i (MAX: 5% TOTAL FDCAN) | B5: =B6+B9+B12 -> 539064.51 | C5: =C6+C9+C12 -> 368732.12 | D5: =D6+D9+D12 -> 600000 | E5: =E6+E9+E12 -> 600000 | F5: =F6+F9+F12 -> 850000 | J5: =B5+C5+D5+E5+F5 -> 2957796.63
A6: Eje 1.1 Apoyo a actividades de I+D+i lideradas por empresas | B6: =B7+B8 -> 0 | C6: =C7+C8 -> 0 | D6: =D7+D8 -> 0 | E6: =E7+E8 -> 0 | F6: =F7+F8 -> 0
A7: ACCIÓN 1: LÍNEA ABIERTA DE AYUDAS A INICIATIVAS DE I+D+i DE EBT DE FUERTEVENTURA | B7: 0 | C7: 0 | D7: 0 | E7: 0 | F7: 0 | J7: 0 | K7: terminada
A8: ACCIÓN 2: LÍNEA ABIERTA DE AYUDAS A LA CREACIÓN DE EBT EN FUERTEVENTURA | B8: 0 | C8: 0 | D8: 0 | E8: 0 | F8: 0 | J8: 0 | K8: terminada
A9: Eje 1.2 Transferencia de conocimiento entre empresas y centros de investigación | B9: =B10+B11 -> 355338.85 | C9: =C10+C11 -> 368732.12 | D9: =D10+D11 -> 600000 | E9: =E10+E11 -> 600000 | F9: =F10+F11 -> 850000 | J9: =B9+C9+D9+E9+F9 -> 2774070.97
A10: ACCIÓN 1: AYUDAS A LA PARTICIPACIÓN DE EBT EN EVENTOS DE I+D+i | B10: 0 | C10: 0 | D10: 0 | E10: 0 | F10: 0 | J10: 0 | K10: terminada
A11: ACCIÓN 2: CELEBRACIÓN DE EVENTOS DE I+D+i EN EL PARQUE TECNOLÓGICO DE FUERTEVENTURA (PTF) Y FUERTEVENTURA EN GRAL | B11: 355338.85 | C11: 368732.12 | D11: 600000 | E11: 600000 | F11: 850000 | J11: =SUM(B11:F11) -> 2774070.97 | K11: terminada
A12: Eje 1.5 Promoción de los servicios públicos digitales | B12: =B13 -> 183725.66 | C12: 0 | D12: 0 | E12: 0 | F12: 0 | J12: =B12+C12+D12+E12+F12 -> 183725.66
A13: ACCIÓN 1: ADECUACIÓN DE LOS SERVICIOS PÚBLICOS INSULARES | B13: 183725.66 | C13: 0 | D13: 0 | E13: 0 | F13: 0 | K13: Terminada
A14: LÍNEA ESTRATÉGICA 2. INVERSIÓN EN INFRAESTRUCTURAS (MAX 75% FDCAN) | B14: =SUM(B15+B62+B68+B156+B211+B224+B285+B303) -> 12035651.05 | C14: =SUM(C15+C62+C68+C156+C211+C224+C285+C303) -> 12302425.45 | D14: =SUM(D15+D62+D68+D156+D211+D224+D285+D303) -> 13594184.43 | E14: =SUM(E15+E62+E68+E156+E211+E224+E285+E303) -> 13702088.9 | F14: =SUM(F15+F62+F68+F156+F211+F224+F285+F303) -> 11633984.72 | J14: =B14+C14+D14+E14+F14 -> 63268334.55
A15: Eje 2.1 Infraestructuras de Transporte | B15: =SUM(B16+B19+B28+B29+B61) -> 1161548.69 | C15: =SUM(C16+C19+C28+C29+C61) -> 3884648.76 | D15: =SUM(D16+D19+D28+D29+D61) -> 2587838.82 | E15: =SUM(E16+E19+E28+E29+E61) -> 1384126.57 | F15: =SUM(F16+F19+F28+F29+F61) -> 1550879.75 | G15: TM | H15: Denominac Indicador | I15: Cantidad ejecutada | J15: =B15+C15+D15+E15+F15 -> 10569042.59
A16: ACCIÓN 1: Actuaciones en Carreteras de Interés Regional | B16: =SUM(B17:B18) -> 0 | C16: 0 | D16: 0 | E16: 0 | F16: 0 | K16: Terminada
A17: Mejora de la carretera Fv-3, Circunvalación a Puerto del Rosario, entre los PP.KK 3+860 y 6,730 | B17: 0 | C17: 0 | D17: 0 | E17: 0 | F17: 0 | G17: PUERTO ROSARIO | J17: Terminada; no elegible FDCAN
A18: Mejora de la carretera Fv-1 entre los PP.KK 1+930 a 5+220 y 8+640 a 12+880 (Conexión entre Puerto del Rosario y Corralejo) | B18: 0 | C18: 0 | D18: 0 | E18: 0 | F18: 0 | G18: PUERTO ROSARIO-LA OLIVA | J18: Terminada; no elegible FDCAN
A19: ACCIÓN 2: Reasfaltado y mejora del firme Vías Municipales interpoblacionales | B19: =SUM(B20:B27) -> 31384.83 | C19: =SUM(C20:C27) -> 1064178.18 | D19: =SUM(D20:D27) -> 698125.84 | E19: =SUM(E20:E27) -> 561896 | F19: =SUM(F20:F27) -> 0 | H19: km Carrt. Mejor. | I19: =SUM(I21:I27) -> 30.642 | J19: =B19+C19+D19+E19+F19 -> 2355584.85 | K19: terminada parcial
A20: INFORME COSTES DE PERSONAL DIRECTO E INDIRECTO: | B20: 3257.74 | C20: 38258.37 | D20: 25985.58 | E20: 0 | F20: 0 | J20: =B20+C20+D20+E20+F20 -> 67501.69
A21: Pavimentación y señalización de La FV-225 (TM Puerto del Rosario) | B21: 7476.09 | C21: 491178.2 | D21: 0 | E21: 0 | F21: 0 | G21: PUERTO ROSARIO | H21: km | I21: 3.5 | J21: =B21+C21+D21+E21+F21 -> 498654.29 | K21: Finalizada
A22: Acondicionamiento y repavimentación de la carretera FV - 103 entre Vallebrón y el cruce con la carretera FV - 10 | B22: 0 | C22: 7232.63 | D22: 334576.81 | E22: 0 | F22: 0 | G22: LA OLIVA | H22: km | I22: 4.658 | J22: 341809.44 | K22: Finalizada
A23: Acondicionamiento y repavimentación de la carretera entre Lajares y Majanicho | B23: 0 | C23: 11556.44 | D23: 6087.9 | E23: 561896 | F23: 0 | G23: LA OLIVA | H23: km | I23: 6.484 | J23: 579540.34 | K23: Finalizada
A24: Acondicionamiento de la carretera asfaltada de acceso a Playa La Barca | B24: 2675 | C24: 0 | D24: 0 | E24: 0 | F24: 0 | G24: PÁJARA | H24: km | I24: 0 | J24: 2675 | K24: Próx. FDCAN
A25: Asfaltado de caminos rurales y reasfaltado de calles en diferentes núcleos del municipio de Pájara. Fase I | B25: 17976 | C25: 446973.89 | D25: 331475.55 | E25: 0 | F25: 0 | G25: PÁJARA | H25: km | I25: 6 | J25: 796425.44 | K25: Finalizada
A26: Acondicionamiento de nueva pista de tierra para el acceso de vehículos en el barranco de La Pared | B26: 0 | C26: 50171.89 | D26: 0 | E26: 0 | F26: 0 | G26: PÁJARA | H26: km | I26: 10 | J26: 50171.89 | K26: Finalizada
A27: Reasfaltado, sustitución bordillos y ejecución red de pluviales Avda del Saladar en Solana Matorral | B27: 0 | C27: 18806.76 | D27: 0 | E27: 0 | F27: 0 | G27: PÁJARA | H27: km | I27: 0 | J27: 18806.76 | K27: Próx. FDCAN
A28: ACCIÓN 3: Marquesinas en Paradas de guaguas en zonas turísticas | B28: 0 | C28: 0 | D28: 0 | E28: 0 | F28: 0 | J28: =B28+C28+D28+E28+F28 -> 0 | K28: Cancelada
A29: ACCIÓN 4: Actuaciones en Carreteras Insulares | B29: =SUM(B30:B60) -> 1130163.86 | C29: =SUM(C30:C60) -> 2820470.58 | D29: =SUM(D30:D60) -> 1889712.98 | E29: =SUM(E30:E60) -> 822230.57 | F29: 1550879.75 | H29: km Carrt. Mejor. | I29: =SUM(I31:I60) -> 76.43 | J29: =B29+C29+D29+E29+F29 -> 8213457.74 | K29: terminada parcial
A30: INFORME COSTES DE PERSONAL DIRECTO E INDIRECTO: | B30: =64587.98+137572.67 -> 202160.65 | C30: 190064.21 | D30: 155754.67 | E30: 0 | F30: 0 | J30: =B30+C30+D30+E30+F30 -> 547979.53
A31: Mejora de la carretera Fv-10 entre los PP.KK 22+300 y 30+500 (entre la intersección del cementerio y glorieta de Lajares) | B31: 928003.21 | C31: 52233.15 | D31: 0 | E31: 0 | F31: 0 | G31: LA OLIVA | H31: km | I31: 8.2 | J31: 980236.36 | K31: Finalizada
A32: Mejora del firme de la carretera Fv-56 entre los PP.KK 0+050 y 8+360 (La Lajita - Cruce de las Hermosas) | B32: 0 | C32: 713345.35 | D32: 0 | E32: 0 | F32: 0 | G32: PÁJARA-TUINEJE | H32: km | I32: 8.4 | J32: 713345.35 | K32: Finalizada
A33: Rehabilitación superficial del firme de la carretera Fv-20 entre los PP.KK 12+580 al 15+480 | B33: 0 | C33: 393951.24 | D33: 0 | E33: 0 | F33: 0 | G33: PUERTO ROSARIO | H33: km | I33: 2.9 | J33: 393951.24 | K33: Finalizada
A34: Rehabilitación superficial del firme de la carretera Fv-30 entre los PP.KK 9+860 a 13+640 y 14+840 a 15+560 | B34: 0 | C34: 401692.62 | D34: 0 | E34: 0 | F34: 0 | G34: BETANCURIA | H34: km | I34: 4.5 | J34: 401692.62 | K34: Finalizada
A35: Mejora del firme de la carretera Fv-219 entre los PP.KK 0+000 y 2+710 (El Time) | B35: 0 | C35: 215779.21 | D35: 0 | E35: 0 | F35: 0 | G35: PUERTO ROSARIO | H35: km | I35: 2.71 | J35: 215779.21 | K35: Finalizada
A36: Mejora del firme de la carretera Fv-511 entre los PP.KK 0+000 y 5+640 (Tesejerague - Glorieta Fv-2) | B36: 0 | C36: 498473.43 | D36: 0 | E36: 0 | F36: 0 | G36: TUINEJE | H36: km | I36: 5.68 | J36: 498473.43 | K36: Finalizada
A37: Mejora del firme de la carretera Fv-520 entre los PP.KK 0+070 y 3+480 (Cruce Fv-4 - Cruce de Araña) | B37: 0 | C37: 342540.98 | D37: 0 | E37: 0 | F37: 0 | G37: TUINEJE | H37: km | I37: 3.41 | J37: 342540.98 | K37: Finalizada
A38: Mejora del firme y drenaje de la carretera FV - 10 entre los PP.KK 30+500 y 35+350 (Glorieta de Lajares-El Roque) | B38: 0 | C38: 0 | D38: 0 | E38: 0 | F38: 1052533.04 | G38: LA OLIVA | H38: km | I38: 4.85 | J38: 1052533.04 | K38: Finalizada
A39: ACOND. CTRA. FV-520 ENTRE PPKK 0+000 Y 3+550 (CRUCE FV-4-CRUCE ARAÑA) LOTE Nº17 | B39: 0 | C39: 0 | D39: 0 | E39: 0 | F39: 0 | G39: LA OLIVA | H39: km | J39: 0
A40: Rehabilitación superficial del firme de la carretera FV-10 entre los PP.KK 35+350 y 36+900 (El Roque-El Cotillo) | B40: 0 | C40: 0 | D40: 0 | E40: 0 | F40: 6030.62 | G40: LA OLIVA | H40: km | I40: 0 | J40: 6030.62 | K40: Próx. FDCAN
A41: Mejora del firme de la carretera FV - 220 entre los PP.KK 0+680 y 1+720 (Entrada a La Asomada) | B41: 0 | C41: 0 | D41: 92933.07 | E41: 8837.68 | F41: 0 | G41: PUERTO ROSARIO | H41: km | I41: 1.4 | J41: 101770.75 | K41: Finalizada
A42: Mejora del firme de la carretera FV - 207 entre los PP.KK 0+000 y 7+040 (Cruce La Matilla-Tefía-Montaña de Tao) | B42: 0 | C42: 2514.5 | D42: 500617.94 | E42: 60012.85 | F42: 0 | G42: PUERTO ROSARIO | H42: km | I42: 7.04 | J42: 563145.29 | K42: Finalizada
A43: Mejora del firme de la carretera FV - 10 entre los PP.KK 12+930 al 14+640 y PP.KK. 18+520 al22+300 (TM Pto Rosario: La Matilla-Cruce Tefía; TM La Oliva: Tindaya-La Oliva) | B43: 0 | C43: 2517.65 | D43: 464772.5 | E43: 62759.4 | F43: 0 | G43: PUERTO ROSARIO-LA OLIVA | H43: km | I43: 5.31 | J43: 530049.55 | K43: Finalizada
A44: Mejora del firme de la carretera FV - 30 entre los PP.KK 0+120 al 2+640 y PP.KK. 4+830 al 7+130 (TM Pto: Cruce Casillas Angel-rotonda Almácigo; Almácigo-Llanos de la Concepción; TM Betancuria: Valle de Sta Inés) | B44: 0 | C44: 2514.5 | D44: 421226.04 | E44: 25795.64 | F44: 0 | G44: PUERTO ROSARIO / BETANCURIA | H44: km | I44: 5 | J44: 449536.18 | K44: Finalizada
A45: Mejora del firme de la carretera FV - 101 entre los PP.KK 0+000 al 1+340, PP.KK. 3+350 al 3+950 y PP.KK. 7+760 al 9+410 (La Oliva-Villaverde-Cruce Lajares) | B45: 0 | C45: 2517.65 | D45: 101914.92 | E45: 167905.34 | F45: 0 | G45: LA OLIVA | H45: km | I45: 5.68 | J45: 272337.91 | K45: Finalizada
A46: Mejora del firme de la carretera FV - 214 entre los PP.KK 0+000 y 4+95 (Glorieta Guisguey-Guisguey) | B46: 0 | C46: 2326.09 | D46: 147143.84 | E46: 488399.66 | F46: 0 | G46: PUERTO ROSARIO | H46: km | I46: 4.85 | J46: 637869.59 | K46: Finalizada
A47: Travesía Villaverde FV-101. medidas previsionales para la reducción de la velocidad del tráfico | B47: 0 | C47: 0 | D47: 0 | E47: 0 | F47: =150638.62 -> 150638.62 | G47: LA OLIVA | H47: km | I47: 2.8 | J47: 150638.62 | K47: Finalizada
A48: Pavimentación acceso a FEAGA TM Antigua FV-420 ppkk 5+260 a 5+830 | B48: 0 | C48: 0 | D48: 1926 | E48: 0 | F48: 0 | G48: ANTIGUA | H48: km | I48: 0 | J48: 1926 | K48: Próx. FDCAN
A49: Mejora firme FV-207 ppkk 7+050 a 10+750 (Tefía-Glorieta Almácigo) | B49: 0 | C49: 0 | D49: 0 | E49: 0 | F49: 302417.8 | G49: PUERTO ROSARIO | H49: km | I49: 3.7 | J49: 302417.8 | K49: Próx. FDCAN
A50: Mejora firme FV-416 ppkk 0+000 a 3+290 (Antigua-Glorieta Valle de Sta Inés) | B50: 0 | C50: 0 | D50: 0 | E50: 0 | F50: 0 | G50: ANTIGUA | H50: km | I50: 0 | J50: 0 | K50: Próx. FDCAN
A51: Mejora firme FV-323 ppkk 0+000 a 0+300 (Nueva ODT carretera de La Banda) | B51: 0 | C51: 0 | D51: 1712 | E51: 0 | F51: 0 | G51: BETANCURIA | H51: km | I51: 0 | J51: 1712 | K51: Próx. FDCAN
A52: Rehab.superf.firme FV-10 ppkk 0+790 a 1+470 (Avda Juan de Bethencourt) | B52: 0 | C52: 0 | D52: 0 | E52: 0 | F52: 29912.6 | G52: PUERTO ROSARIO | H52: km | I52: 0 | J52: 29912.6 | K52: Próx. FDCAN
A53: Rehab.superf.firme FV-20 ppkk 0+000 a 1+980 (Antiguo cementerio-Circunvalación) | B53: 0 | C53: 0 | D53: 0 | E53: 0 | F53: 0 | G53: PUERTO ROSARIO | H53: km | I53: 0 | J53: 0 | K53: Próx. FDCAN
A54: Rehab.superf.firme FV-20 ppkk 4+250 a 6+150 (Glorieta vertedero-Llanos Pelados) | B54: 0 | C54: 0 | D54: 0 | E54: 0 | F54: 2766.57 | G54: PUERTO ROSARIO | H54: km | I54: 0 | J54: 2766.57 | K54: Próx. FDCAN
A55: Rehab.superf.firme FV-20 ppkk 25+150 y 29+250 (Cuesta de Pedrales-Tiscamanita) FDCAN 2022/2026 | B55: 0 | C55: 0 | D55: 0 | E55: 0 | F55: 0 | G55: ANTIGUA-TUINEJE | H55: km | I55: 0 | J55: 0 | K55: Próx. FDCAN
A56: Acond.puntual de la FV-30 a su paso por Betancuria (ppkk 15+480 a 15+660) | B56: 0 | C56: 0 | D56: 1712 | E56: 0 | F56: 0 | G56: BETANCURIA | H56: km | I56: 0 | J56: 1712 | K56: Próx. FDCAN
A57: Rehab.superf.firme FV-30 ppkk 7+130 a 9+860 (Valle Sta Inés-Glorieta del Valle) | B57: 0 | C57: 0 | D57: 0 | E57: 0 | F57: 0 | G57: BETANCURIA | H57: km | I57: 0 | J57: 0 | K57: Próx. FDCAN
A58: Rehab.superf.firme FV-605 entre los ppkk 11+740 a 20+000 (Mirador de Sicasumbre-Cruce de Las Hermosas) | B58: 0 | C58: 0 | D58: 0 | E58: 0 | F58: 6580.5 | G58: TUINEJE | H58: km | I58: 0 | J58: 6580.5 | K58: Próx. FDCAN
A59: Acceso Colegio de Villaverde FV-101 | B59: 0 | C59: 0 | D59: 0 | E59: 8520 | F59: 0 | G59: LA OLIVA | H59: km | I59: 0 | J59: 8520 | K59: Próx. FDCAN
A60: Mejora FV-10 PK 2,5 a 8,330 Glorieta de Tetir FDCAN 2021/2025 | B60: 0 | C60: 0 | D60: 0 | E60: 0 | F60: 0 | G60: PUERTO ROSARIO | H60: km | I60: 0 | J60: 0
A61: ACCIÓN 5: Marquesinas en Paradas de guaguas en zonas estratégicas del sistema viario insular (Aeropuerto, Corralejo y Betancuria) | B61: 0 | C61: 0 | D61: 0 | E61: 0 | F61: 0 | J61: =B61+C61+D61+E61+F61 -> 0 | K61: Cancelada
A62: Eje 2.2 Infraestructuras científicas y tecnológicas | B62: =SUM(B63+B65) -> 39918.62 | C62: =SUM(C63+C65) -> 37811.96 | D62: =SUM(D63+D65) -> 210.8 | E62: =SUM(E63+E65) -> 17999.99 | F62: =SUM(F63+F65) -> 0 | J62: =B62+C62+D62+E62+F62 -> 95941.37
A63: ACCIÓN 1: Dotación del laboratorio agroalimentario de Fuerteventura | B63: =B64 -> 39918.62 | C63: =C64 -> 37811.96 | D63: =D64 -> 0 | E63: 0 | F63: 0 | J63: =B63+C63+D63+E63+F63 -> 77730.58 | K63: terminada parcial
A64: Dotación del Laboratorio Agroalimentario de Fuerteventura: analíticas Letra Q | B64: 39918.62 | C64: 37811.96 | D64: 0 | E64: 0 | F64: 0 | G64: ANTIGUA | K64: Próx. FDCAN
A65: ACCIÓN 2: Centros de innovación tecnológica | B65: =SUM(B67) -> 0 | C65: =SUM(C67) -> 0 | D65: =SUM(D66:D67) -> 210.8 | E65: 17999.99 | F65: 0 | J65: =B65+C65+D65+E65+F65 -> 18210.79 | K65: terminada parcial
A66: INFORME COSTES DE PERSONAL DIRECTO E INDIRECTO: | B66: 0 | C66: 0 | D66: 210.8 | E66: 0 | F66: 0 | J66: =B66+C66+D66+E66+F66 -> 210.8
A67: Centro de Innovación tecnológica y sede de la Reserva de la Biosfera de Fuerteventura | B67: 0 | C67: 0 | D67: 0 | E67: 17999.99 | F67: 0 | G67: PUERTO ROSARIO | K67: Próx. FDCAN
A68: Eje 2.3 Creación. Mejora de espacios con potencialidad turística | B68: =B69 -> 8135075.7 | C68: 4244520.52 | D68: 4300879.55 | E68: 3175499.48 | F68: 2496422.76 | H68: Denominac Indicador | I68: Cantidad ejecutada | J68: =B68+C68+D68+E68+F68 -> 22352398.01
A69: ACCIÓN 1: Mejora de infraestructura uso general en espacios públicos Fuerteventura | B69: =SUM(B70:B155) -> 8135075.7 | C69: =SUM(C70:C155) -> 4244520.52 | D69: =SUM(D70:D155) -> 4300879.55 | E69: =SUM(E70:E155) -> 3175499.48 | F69: =SUM(F70:F155) -> 2496422.76 | H69: m2 Superf. mejorada | I69: =SUM(I71:I155)-I150 -> 350461.32 | J69: =B69+C69+D69+E69+F69 -> 22352398.01 | K69: terminada parcial
A70: INFORME COSTES DE PERSONAL DIRECTO E INDIRECTO | B70: =71894.63+153135.87 -> 225030.5 | C70: 185885.64 | D70: 160086.97 | E70: 0 | F70: =46141.98+30224.01 -> 76365.99 | J70: =B70+C70+D70+E70+F70 -> 647369.1
A71: CABILDO: | J71: 0
A72: Redacc.proyecto "Acond.Mirador Carretera FV30 Valle de Santa Inés" | B72: 0 | C72: 9095 | D72: 0 | E72: 0 | F72: 4066 | G72: BETANCURIA | H72: m2 | I72: 0 | J72: 13161 | K72: Próx. FDCAN
A73: Redacc.proyecto "Mirador Carretera FV20 El Almácigo" | B73: 0 | C73: 4066 | D73: 0 | E73: 176755.12 | F73: 36881.22 | G73: PUERTO ROSARIO | H73: m2 | I73: 2911.32 | J73: 217702.34 | K73: Finalizada
A74: Aparcamientos y accesos al Mirador de Unamuno | B74: 18355.85 | C74: 1605 | D74: 0 | E74: 0 | F74: 0 | G74: PUERTO ROSARIO | H74: m2 | I74: 0 | J74: 19960.85 | K74: Próx. FDCAN
A75: Equipamiento cafetería del Edificio de Formación y Congresos | B75: =40589.18+35063.02 -> 75652.2 | C75: 0 | D75: 0 | E75: 0 | F75: 0 | G75: PUERTO ROSARIO | H75: m2 | I75: 202.99 | J75: 75652.2 | K75: Finalizada
A76: Acondicionamiento de talud en el tramo de prolongación carretera FV-2 pk 0+560 al pk0+731 (hospital) | B76: 4066 | C76: 51780.94 | D76: 0 | E76: 0 | F76: 0 | G76: PUERTO ROSARIO | H76: m2 | I76: 569.98 | J76: 55846.94 | K76: Finalizada
A77: Acondicionamiento de talud en el tramo de autovía Fv-2 pk 01+875 al pk 02+015 (gasolinera) (infra-013/17) | B77: 4066 | C77: 144466.39 | D77: 21803.85 | E77: 0 | F77: 0 | G77: PUERTO ROSARIO | H77: m2 | I77: 971.51 | J77: 170336.24 | K77: Finalizada
A78: Césped sintético en isletas en cruces de La Oliva, Puerto del Rosario y Morro Jable | B78: 11420.38 | C78: 0 | D78: 0 | E78: 0 | F78: 0 | G78: PUERTO ROSARIO-LA OLIVA-PÁJARA | H78: m2 | J78: 11420.38 | K78: Finalizada
A79: Acondicionamiento mediana en el tramo autovía FV-2 | B79: 3210 | C79: 66232.18 | D79: 355305.11 | E79: 0 | F79: 0 | G79: PUERTO ROSARIO | H79: m2 | I79: 24048.5 | J79: 424747.29 | K79: Finalizada
A80: Acondicionamiento de la rotonda de circunvalación FV-3 con FV-10 t.m. Puerto Rosario | B80: 30992.56 | C80: 0 | D80: 0 | E80: 0 | F80: 0 | G80: PUERTO ROSARIO | H80: m2 | J80: 30992.56 | K80: Finalizada
A81: Remodelación de La Fv-10 pk 0+270 - pk 0+855 Avenida Juan de Bethencourt | B81: 17655 | C81: 272.79 | D81: 0 | E81: 0 | F81: 0 | G81: PUERTO ROSARIO | H81: m2 | J81: 17927.79 | K81: Próx. FDCAN
A82: Acondicionamiento vía de acceso al Mirador del Barranco de los Canarios | B82: 0 | C82: 40660 | D82: 0 | E82: 0 | F82: 0 | G82: PÁJARA | H82: m2 | J82: 40660 | K82: Próx. FDCAN
A83: Acondicionamiento rotonda FV-3 con FV-20 | B83: 0 | C83: 0 | D83: 2487.75 | E83: 0 | F83: 0 | G83: PUERTO ROSARIO | H83: m2 | J83: 2487.75
A84: Reposición de infraestructuras y bienes destinados al uso general (Acondic.rotondas,..) INSTALACIÓN DE CÉSPED ARTIF.MEDIANA Y ROTONDA DE LA C/EUSTAQUIO JUAN SANTANA GIL | B84: 199959.01 | C84: 13034.28 | D84: 0 | E84: 0 | F84: 0 | G84: PÁJARA | H84: m2 | I84: 488.5 | J84: 212993.29 | K84: Finalizada
A85: Reposición de infraestructuras y bienes destinados al uso general: ACOND. ROTONDA DEL CARTERO. TARAJALEJO- FV-2 PK 48,50, (Lote 1) | B85: 0 | C85: 0 | D85: 0 | E85: 16396.6 | F85: 0 | G85: TUINEJE | H85: m2 | I85: 888.25 | J85: 16396.6 | K85: Finalizada
A86: Reposición de infraestructuras y bienes destinados al uso general: ACOND. ROTONDA DE ENTRADA A MORRO JABLE. (Lote 2) | B86: 0 | C86: 0 | D86: 9829.93 | E86: 0 | F86: 0 | G86: PÁJARA | H86: m2 | I86: 1041.3 | J86: 9829.93 | K86: Finalizada
A87: Reposición de infraestructuras y bienes destinados al uso general:ACOND.ROTONDA EN LA FV-2, CON FV-605, DIRECCION A LA PARED. (Lote 3) | B87: 0 | C87: 0 | D87: 21138.25 | E87: 68.4 | F87: 0 | G87: PÁJARA | H87: m2 | I87: 1133.54 | J87: 21206.65 | K87: Finalizada
A88: Reposición de infraestructuras y bienes destinados al uso general: ACONDI.ROTONDA DE TARAJALEJO, FV-2, PK-60,53. (Lote 4) | B88: 0 | C88: 0 | D88: 42284.4 | E88: 4214.34 | F88: 0 | G88: TUINEJE | H88: m2 | I88: 1577.31 | J88: 46498.74 | K88: Finalizada
A89: Reposición de infraestructuras y bienes destinados al uso general: ACOND. ROTONDA EN MATAS BLANCAS. ENLACE FV-2 CON FV-603. (Lote 5) | B89: 0 | C89: 0 | D89: 8884.25 | E89: 0 | F89: 0 | G89: PÁJARA | H89: m2 | I89: 415.27 | J89: 8884.25 | K89: Finalizada
A90: Reposición de infraestructuras y bienes destinados al uso general: ACOND.ROTONDA EN COSTA CALMA, CARRETERA FV-2, ENLACE NORTE.(Lote 6) | B90: 0 | C90: 0 | D90: 10070.14 | E90: 0 | F90: 0 | G90: TUINEJE | H90: m2 | I90: 254.34 | J90: 10070.14 | K90: Finalizada
A91: Reposición de infraestructuras y bienes destinados al uso general: ACOND. ROTONDA EN MATAS BLANCAS. FV-2, ENLACE NORTE. | B91: 0 | C91: 0 | D91: 8981.28 | E91: 0 | F91: 0 | G91: PÁJARA | H91: m2 | I91: 200.96 | J91: 8981.28 | K91: Finalizada
A92: Reposición de infraestructuras y bienes destinados al uso general: ACOND.ROTONDA EN LA FV-2, COSTA CALMA-EL GRANILLO. | B92: 0 | C92: 0 | D92: 46056.93 | E92: 3885.44 | F92: 0 | G92: PÁJARA | H92: m2 | I92: 2826 | J92: 49942.37 | K92: Finalizada
A93: Ayto La Oliva: Plaza de La Caldereta | B93: 188773.34 | C93: 0 | D93: 0 | E93: 0 | F93: 0 | G93: LA OLIVA | H93: m2 | J93: 188773.34 | K93: Finalizada
A94: Ayto La Oliva: Acondic. Aceras Bristol a CF Corralejo | B94: =93312.35+9035.86 -> 102348.21 | C94: 0 | D94: 0 | E94: 0 | F94: 0 | G94: LA OLIVA | H94: m2 | J94: 102348.21 | K94: Finalizada
A95: SERVICIO DE TURISMO: Infraestructuras turísticas en toda la isla | B95: 173269.18 | C95: 0 | D95: 0 | E95: 0 | F95: 0 | G95: INSULAR | H95: m2 | J95: 173269.18 | K95: Finalizada
A96: AYUNTAMIENTO DE ANTIGUA:
A97: S/JUSTIFICACIÓN FDCAN ANTIGUA 2016 | B97: =2525033.36+2096322.95 -> 4621356.31 | C97: 0 | D97: 0 | E97: 0 | F97: 0 | G97: ANTIGUA | H97: m2 | I97: 71153.62 | J97: 4621356.31 | K97: Finalizada
A98: Remodelación calle peatonal Orchilla Tramo 3 (Caleta de Fuste) (TM Antigua) | B98: 0 | C98: 133106.96 | D98: 683112.52 | E98: 56847.03 | F98: 0 | G98: ANTIGUA | H98: m2 | I98: 7254.25 | J98: 873066.51 | K98: Finalizada
A99: Remodelación calle peatonal Orchilla Tramo 4 (Caleta de Fuste) FDCAN 2021/2025 | B99: 0 | C99: 0 | D99: 0 | E99: 0 | F99: 0 | G99: ANTIGUA | H99: m2 | J99: 0 | K99: Próx. FDCAN en curso
A100: Remodelación integral Calle Pablo Picasso (Caleta de Fuste) FDCAN 2021/2025 | B100: 0 | C100: 0 | D100: 0 | E100: 0 | F100: 0 | G100: ANTIGUA | H100: m2 | J100: 0 | K100: Próx. FDCAN en curso
A101: Remodelación integral de Avda Virgen de la Peña (Caleta de Fuste) FDCAN 2021/2025 | B101: 0 | C101: 0 | D101: 0 | E101: 0 | F101: 0 | G101: ANTIGUA | H101: m2 | J101: 0 | K101: Próx. FDCAN en curso
A102: Pavimentación de aceras calles Relinchón, Turmero, Cardón y Acebuche | B102: 0 | C102: 0 | D102: 0 | E102: 0 | F102: 898845.69 | H102: m2 | I102: 775 | J102: 898845.69 | K102: Finalizada
A103: Acond. de la plataforma de aparcamientos del Museo del Queso y del Molino de Antigua FDCAN 2021/2025 | B103: 0 | C103: 0 | D103: 0 | E103: 0 | F103: 0 | G103: ANTIGUA | H103: m2 | J103: 0
A104: Paseo Nuevo Horizonte - El Matorral FDCAN 2021/2025 | B104: 0 | C104: 0 | D104: 0 | E104: 0 | F104: 0 | G104: ANTIGUA | H104: m2 | J104: 0
A105: T.M. BETANCURIA: | J105: 0
A106: Acondicionamiento y mejora de la calle Amador Rodríguez en Betancuria | B106: 4066 | C106: =13484.37+20855.9+15141.6 -> 49481.87 | D106: 5058.99 | E106: 7196.84 | F106: 0 | G106: BETANCURIA | H106: m2 | I106: 950.45 | J106: 65803.7 | K106: Finalizada
A107: Redacción Proyecto Espacio Regeneración Turística de Betancuria FDCAN 2021/2025 | B107: 0 | C107: 0 | D107: 0 | E107: 0 | F107: 0 | G107: BETANCURIA | H107: m2 | J107: 0
A108: Acondicionamiento y mejora paisajística de Espacio Público en la Villa de Betancuria | B108: 0 | C108: 4494 | D108: 0 | E108: 0 | F108: 134216.17 | G108: BETANCURIA | H108: m2 | J108: 138710.17 | K108: Próx. FDCAN
A109: Acondicionamiento calle San Buenaventura (Betancuria) | B109: 0 | C109: 0 | D109: 0 | E109: 2556 | F109: 48096.43 | H109: m2 | I109: 1806 | J109: 50652.43 | K109: Finalizada
A110: Acondicionamiento calle Presidente Hormiga (Betancuria) | B110: 0 | C110: 0 | D110: 0 | E110: 2715.75 | F110: 28923.2 | H110: m2 | I110: 980 | J110: 31638.95 | K110: Finalizada
A111: Acondicionamiento calle Real (Valle Sta Inés) | B111: 0 | C111: 0 | D111: 0 | E111: 2556 | F111: 39484.96 | H111: m2 | I111: 1130 | J111: 42040.96 | K111: Finalizada
A112: Acondicionamiento ramal camino Gran Barranco (Valle Sta Inés) | B112: 0 | C112: 0 | D112: 0 | E112: 2556 | F112: 60883.1 | H112: m2 | I112: 1806 | J112: 63439.1 | K112: Finalizada
A113: T.M. LA OLIVA: | J113: 0
A114: Reasfaltado avda Pedro Guy Vandaele en Corralejo (TM La Oliva) | B114: 0 | C114: 726854.15 | D114: 0 | E114: 0 | F114: 0 | G114: LA OLIVA | H114: m2 | I114: 24570 | J114: 726854.15 | K114: Finalizada
A115: Acond.y mejora Avda Juan Carlos I en Corralejo | B115: 357441 | C115: 0 | D115: 0 | E115: 0 | F115: 0 | G115: LA OLIVA | H115: m2 | I115: 35625 | J115: 357441 | K115: Finalizada
A116: Plan de accesibilidad de Corralejo Fase I. Calles Bajo Blanco, Bocinegro, Brújula, Pejín, Radio Ecca, Francisco Navarro Artíles, Anzuelo, Falúa y Palangre | B116: =775681.42+17810 -> 793491.42 | C116: 0 | D116: 0 | E116: 0 | F116: 0 | G116: LA OLIVA | H116: m2 | I116: =2554.6+2780.5+6101.2+4850.85+2423+2641.4 -> 21351.55 | J116: 793491.42 | K116: Finalizada
A117: Asfaltado aparcamientos urb.GEAFON Corralejo | B117: 14872.98 | C117: 0 | D117: 0 | E117: 0 | F117: 0 | G117: LA OLIVA | H117: m2 | I117: 968.64 | J117: 14872.98 | K117: Finalizada
A118: Asfaltado Avda Fuerteventura y calle El Pozo en Corralejo | B118: 188311.05 | C118: 0 | D118: 0 | E118: 0 | F118: 0 | G118: LA OLIVA | H118: m2 | I118: 11014.88 | J118: 188311.05 | K118: Finalizada
A119: Sistema costero: IC-01. Recuperación de los accesos al mar: Plan de modernización de Corralejo, en calles Arístides Hernández Morán, La Red, Poseidón, Bahía u Poseidón en su remate final | B119: 8881 | C119: 3210 | D119: 223340.41 | E119: 0 | F119: 0 | G119: LA OLIVA | H119: m2 | I119: =860.57+683.48+727.31 -> 2271.36 | J119: 235431.41 | K119: Finalizada
A120: Plan de accesibilidad de Corralejo. Accesibilidad de Corralejo Fase I. Calles Pizarro, Malpais, Cho León y Juan Sebastián El Cano | B120: 4173 | C120: 11128 | D120: 525478.57 | E120: 0 | F120: 0 | G120: LA OLIVA | H120: m2 | I120: =2471+1713+1718 -> 5902 | J120: 540779.57 | K120: Finalizada
A121: Plan de accesibilidad de El Cotillo (Itinerarios 6-8A-8B) | B121: 0 | C121: 5885 | D121: 0 | E121: 0 | F121: 326358.94 | G121: LA OLIVA | H121: m2 | I121: 5971 | J121: 332243.94 | K121: Finalizada
A122: Acondicionamiento y pavimentación de zonas libres y espacion públicos en El Cotillo | B122: 0 | C122: 0 | D122: 77986.97 | E122: 0 | F122: 0 | G122: LA OLIVA | H122: m2 | I122: 345.45 | J122: 77986.97 | K122: Finalizada
A123: Acondicionamiento de aceras en Geafond en C/ Guirre | B123: 0 | C123: 8560 | D123: 0 | E123: 1244157.46 | F123: 35823.88 | G123: LA OLIVA | H123: m2 | I123: 10159.29 | J123: 1288541.34 | K123: Finalizada
A124: Acondicionamiento y repavimentación de la Avda. Ntra. Sra. Del Carmen entre la glorieta de la FV - 1 y la Avda Fuerteventura | B124: 0 | C124: 6762.2 | D124: 316209.97 | E124: 0 | F124: 0 | G124: LA OLIVA | H124: m2 | I124: 9900 | J124: 322972.17 | K124: Finalizada
A125: Mejora de la C/ Paseo Atlántico, en Corralejo | B125: 0 | C125: 0 | D125: 0 | E125: 0 | F125: 48618.77 | G125: LA OLIVA | H125: m2 | I125: 370 | J125: 48618.77 | K125: Finalizada
A126: Remodelación de la Plaza de Ermita de San Vicente Ferrer, en Villaverde | B126: 0 | C126: 7200 | D126: 34852.74 | E126: 204051.55 | F126: 0 | G126: LA OLIVA | H126: m2 | I126: 1346.43 | J126: 246104.29 | K126: Finalizada
A127: T.M. PUERTO DEL ROSARIO: | J127: 0
A128: VARIAS ACTUACIONES EJECUTADAS POR EL AYTO PUERTO ROSARIO APLICADAS AL FDCAN2016 | B128: 687823.18 | C128: 0 | D128: 0 | E128: 0 | F128: 0 | G128: PUERTO ROSARIO | H128: m2 | I128: 43773.04 | J128: 687823.18 | K128: Finalizada
A129: II Fase Centro urbano de Casillas del Angel (TM Puerto del Rosario) | B129: 14980 | C129: 0 | D129: 0 | E129: 172438.28 | F129: 347278.78 | G129: PUERTO ROSARIO | H129: m2 | I129: 4028 | J129: 534697.06 | K129: Finalizada
A130: Pavimentación de aceras calle León y Castillo | B130: 0 | C130: 1498 | D130: 0 | E130: 0 | F130: 0 | G130: PUERTO ROSARIO | H130: m2 | J130: 1498 | K130: Finalizada
A131: Peatonalización del tramo de la carretera de Los Pozos. Acondicionamiento Rodonal y peatonal calle carretera de Los Pozos | B131: 0 | C131: 897362 | D131: 0 | E131: 0 | F131: 0 | G131: PUERTO ROSARIO | H131: m2 | I131: 6080.99 | J131: 897362 | K131: Finalizada
A132: Peatonalización del tramo de la carretera de Los Pozos. Accesibilidad playa de Los Pozos | B132: 0 | C132: 81833.62 | D132: 0 | E132: 0 | F132: 0 | G132: PUERTO ROSARIO | H132: m2 | I132: 765 | J132: 81833.62 | K132: Finalizada
A133: Remodelación de los hornos de cal de El Charco. Rehabilitación hornos de cal HC 18 y su entorno (El Charco) | B133: 0 | C133: 140723.69 | D133: 190676.62 | E133: 0 | F133: 0 | G133: PUERTO ROSARIO | H133: m2 | I133: 3678 | J133: 331400.31 | K133: Finalizada
A134: Centro de interpretación de los Hornos de cal de Puerto del Rosario | B134: 0 | C134: 150095.14 | D134: 73272.3 | E134: 127081.53 | F134: 0 | G134: PUERTO ROSARIO | H134: m2 | I134: 314.32 | J134: =B134+C134+D134+E134+F134 -> 350448.97 | K134: Finalizada
A135: Rehabilitación de los hornos de cal HC - 16 y HC - 17 | B135: 0 | C135: 249361.02 | D135: 237121 | E135: 0 | F135: 0 | G135: PUERTO ROSARIO | H135: m2 | I135: 2561.37 | J135: 486482.02 | K135: Finalizada
A136: Acondic Borde Litoral Puerto del Rosario - Playa Blanca | B136: 0 | C136: 0 | D136: 0 | E136: 0 | F136: 0 | G136: PUERTO ROSARIO | H136: m2 | J136: 0
A137: Pavimentación de aceras en diversas zonas de Puerto del Rosario | B137: 0 | C137: 0 | D137: 0 | E137: 0 | F137: 0 | G137: PUERTO ROSARIO | H137: m2 | J137: 0
A138: Mejora de Accesibilidad Urbana: Pavimentos de Aceras | B138: 0 | C138: 0 | D138: 0 | E138: 0 | F138: 0 | G138: PUERTO ROSARIO | H138: m2 | J138: 0
A139: Adecuación Paisajística, Carril Bici y entornos periurbanos en Puerto del Rosario | B139: 0 | C139: 0 | D139: 0 | E139: 0 | F139: 0 | G139: PUERTO ROSARIO | H139: m2 | J139: 0
A140: Diversas actuaciones de Rehabilitación, Embellecimiento, Instalaciones y Equipamiento, en espacios públicos, zona urbana de Puerto del Rosario | B140: 0 | C140: 0 | D140: 0 | E140: 0 | F140: 0 | G140: PUERTO ROSARIO | H140: m2 | J140: 0
A141: T.M. PÁJARA
A142: VARIAS ACTUACIONES EJECUTADAS POR EL AYTO PÁJARA APLICADAS AL FDCAN2016 | B142: =4302.52+19621.47+18287.37+25544.97+6015.45 -> 73771.78 | C142: 0 | D142: 0 | E142: 0 | F142: 0 | G142: PÁJARA | H142: m2 Superf. mejorada | I142: =8.25+930+764.58+330 -> 2032.83 | J142: 73771.78 | K142: Finalizada
A143: Acondicionamiento de la Plaza de La Lajita FASE II | B143: 225077.09 | C143: 0 | D143: 283740.25 | E143: 68269.03 | F143: 0 | G143: PÁJARA | H143: m2 Superf. mejorada | I143: 3412.82 | J143: 577086.37 | K143: Finalizada
A144: Acondicionamiento del Bulevar El Timón (Morro Jable) | B144: 0 | C144: 182022.51 | D144: 0 | E144: 0 | F144: 0 | G144: PÁJARA | H144: m2 Superf. mejorada | I144: 3120 | J144: 182022.51 | K144: Finalizada
A145: Mantenimiento y mejora de la Plaza de la desembocadura del Barranco del Ciervo | B145: 0 | C145: 74008.5 | D145: 0 | E145: 0 | F145: 0 | G145: PÁJARA | H145: m2 Superf. mejorada | I145: 1816 | J145: 74008.5 | K145: Finalizada
A146: Acondicionamiento del entorno de la Iglesia de Pájara | B146: 0 | C146: 10317.48 | D146: 531718.57 | E146: 0 | F146: 0 | G146: PÁJARA | H146: m2 | I146: 4693 | J146: 542036.05 | K146: Finalizada
A147: Museo Pepe Dámaso | B147: 0 | C147: 196288.84 | D147: 389449.35 | E147: 1083754.11 | F147: 196749.68 | G147: PÁJARA | H147: m2 | I147: 859 | J147: 1866241.98 | K147: Finalizada
A148: Mejoras accesos peatonales de playas y pavimentación de plataformas hormigón de módulos de aseo de servicio público exist.en playas del municipio de Pájara | B148: 0 | C148: 53349.81 | D148: 0 | E148: 0 | F148: 0 | G148: PÁJARA | H148: m2 superf.mejorada | I148: 370 | J148: 53349.81 | K148: Finalizada
A149: Suministro y colocación de módulos de aseo de servicio público en sustitución de baños existentes en las playas del municipio de Pájara | B149: 0 | C149: 255642.59 | D149: 0 | E149: 0 | F149: 0 | G149: PÁJARA | H149: m2 superf.mejorada | I149: 84 | J149: 255642.59 | K149: Finalizada
A150: Obras de colocación de barandillas de protección en acera de la Calle Biocho, en la zona cercana al completo Stella Canaris (Morro Jable) | B150: 0 | C150: 43964.64 | D150: 0 | E150: 0 | F150: 0 | G150: PÁJARA | H150: ml colocados de barandilla | I150: 286 | J150: 43964.64 | K150: Finalizada
A151: Acceso al Puerto de Morro Jable por la calle Atolladero | B151: 0 | C151: 0 | D151: 0 | E151: 0 | F151: 213829.95 | G151: PÁJARA | H151: m2 | I151: 4120 | J151: 213829.95 | K151: Finalizada
A152: T.M. TUINEJE: | J152: 0
A153: Acondic. y mejora de Puerto Azul, Tarajalejo: ACERAS | B153: =64975.06+7276 -> 72251.06 | C153: 188652.45 | D153: 0 | E153: 0 | F153: 0 | G153: TUINEJE | H153: Superf.m2 | I153: 1393.65 | J153: 260903.51 | K153: Finalizada
A154: Acondic. y mejora de Puerto Azul, Tarajalejo: MEJORA DEL FIRME DE CALLES EN PUERTO AZUL Y TARAJALEJO | B154: 5296.5 | C154: 0 | D154: 0 | E154: 0 | F154: 0 | G154: TUINEJE | H154: Superf.m2 | I154: 0 | J154: 5296.5 | K154: Próx. FDCAN
A155: Reasfaltado en Tuineje y en Tiscamanita | B155: 8485.1 | C155: 245619.83 | D155: 41932.43 | E155: 0 | F155: 0 | G155: TUINEJE | H155: m2 | I155: 14178.61 | J155: 296037.36 | K155: Finalizada
A156: Eje 2.4 Infraestructuras hidráulicas | B156: =B157+B171+B173+B201+B183+B203+B207 -> 560062.22 | C156: =C157+C171+C173+C201+C183+C203+C207 -> 194481.89 | D156: =D157+D171+D173+D201+D183+D203+D207 -> 2619911.83 | E156: =E157+E171+E173+E201+E183+E203+E207 -> 7424970.25 | F156: =F157+F171+F173+F201+F183+F203+F207 -> 3783365.01 | H156: Denominac Indicador | I156: Cantidad ejecutada | J156: =SUM(B156:F156) -> 14582791.2
A157: ACCIÓN 1: Ampliación y mejora de los medios de producción de agua: actuación en los sistemas de desalación | B157: =SUM(B159:B170) -> 0 | C157: 137664.79 | D157: 187799.25 | E157: 669518.83 | F157: =SUM(F158:F170) -> 1046421.44 | H157: poblac Beneficiada | I157: 100000 | J157: =B157+C157+D157+E157+F157 -> 2041404.31 | K157: Terminada
A158: INFORME COSTES DE PERSONAL DIRECTO E INDIRECTO: | B158: 0 | C158: 0 | D158: 0 | E158: 0 | F158: =19341.26+12668.95 -> 32010.21 | J158: =B158+C158+D158+E158+F158 -> 32010.21
A159: Suministros de bombas motores y variadores de frecuencia en Planta desaladora de Puerto del Rosario | B159: 0 | C159: 137664.79 | D159: 187799.25 | E159: 0 | F159: 0 | G159: PUERTO ROSARIO | H159: habitant. | I159: 100000 | J159: 325464.04 | K159: Finalizada
A160: Adquisición 3módulos de desalación: Lote1-Pto.Rosario,Lote2-Corralejo,Lote3-GT | B160: 0 | C160: 0 | D160: 0 | E160: 669518.83 | F160: =509232.22+505179.01 -> 1014411.23 | G160: INSULAR | H160: habitant. | I160: =74207+12123+14180 -> 100510 | J160: 1683930.06 | K160: Finalizada
A161: Remineralización con lechos de calcita agua desalada IDAM Pto Rosario FDCAN 2021/2025 | B161: 0 | C161: 0 | D161: 0 | E161: 0 | F161: 0 | H161: habitant. | J161: 0
A162: Ampliación y mejora EDAM Corralejo FDCAN 2021/2025 | B162: 0 | C162: 0 | D162: 0 | E162: 0 | F162: 0 | H162: habitant. | J162: 0
A163: Ampliación y mejora EDAM Puerto del Rosario IV-2ª fase FDCAN 2021/2025 | B163: 0 | C163: 0 | D163: 0 | E163: 0 | F163: 0 | H163: habitant. | J163: 0
A164: Reforma general centro transformación C200203 EDAM Corralejo FDCAN 2021/2025 | B164: 0 | C164: 0 | D164: 0 | E164: 0 | F164: 0 | H164: habitant. | J164: 0
A165: Almacén de productos químicos destinados al tratamiento de agua potable EDAM Puerto del Rosario FDCAN 2021/2025 | B165: 0 | C165: 0 | D165: 0 | E165: 0 | F165: 0 | G165: LA OLIVA | H165: habitant. | J165: 0
A166: Actuación obra civil y paramentos en EDAM Gran Tarajal FDCAN 2021/2025 | B166: 0 | C166: 0 | D166: 0 | E166: 0 | F166: 0 | H166: habitant. | J166: 0
A167: Suministro e instalación de filtros de arena en EDAM Gran Tarajal FDCAN 2021/2025 | B167: 0 | C167: 0 | D167: 0 | E167: 0 | F167: 0 | H167: habitant. | J167: 0
A168: Ampliación y mejora EDAM F VIII Puerto del Rosario | B168: 0 | C168: 0 | D168: 0 | E168: 0 | F168: 0 | G168: PUERTO ROSARIO | H168: habitant. | J168: 0
A169: Ampliación y mejora EDAM Gran Tarajal | B169: 0 | C169: 0 | D169: 0 | E169: 0 | F169: 0 | G169: TUINEJE | H169: habitant. | J169: 0
A170: Suministro equipos bombeo y cuadros eléctricos estaciones bombeos red abastecimiento insular | B170: 0 | C170: 0 | D170: 0 | E170: 0 | F170: 0 | G170: FUERTEVENTURA | H170: habitant. | J170: 0
A171: ACCIÓN 2: Sistema energético renovable de generación eléctrica eólica para el autoconsumo de las desaladoras, en el Centro producción Puerto del Rosario | B171: =SUM(B172:B172) -> 0 | C171: =SUM(C172:C172) -> 0 | D171: =SUM(D172:D172) -> 216071.8 | E171: 2739822.1 | F171: 0 | H171: poblac Beneficiada | I171: 100000 | J171: 2955893.9 | K171: Terminada
A172: Parque Eólico de 2 MW con consumos asociados a la desaladora CAAF Puerto del Rosario | B172: 0 | C172: 0 | D172: 216071.8 | E172: 2739822.1 | F172: 0 | G172: PUERTO ROSARIO | H172: habitant. | I172: 100000 | J172: 2955893.9 | K172: Finalizada
A173: ACCIÓN 3: Rehabilitación y ampliación de depósitos de reserva y distribución hidráulica | B173: =SUM(B175:B178) -> 274990.91 | C173: =SUM(C175:C178) -> 15801.6 | D173: =SUM(D175:D178) -> 92064.25 | E173: =SUM(E175:E178) -> 0 | F173: =SUM(F175:F182) -> 2514376.05 | H173: ml de long.de red | I173: =I177+I178+I180 -> 8447 | J173: 2897232.81 | K173: Terminada
H174: m3 capacidad | I174: =I179+I180+I181 -> 56544
A175: INFORME COSTES DE PERSONAL DIRECTO E INDIRECTO: | B175: 24565.94 | C175: 0 | D175: 6101.48 | E175: 0 | F175: =46473.82+30441.37 -> 76915.19 | J175: 107582.61
A176: REPARACIÓN DEPÓSITO DE LA HERRADURA (CONVENIO CAAF) | B176: 250424.97 | C176: 0 | D176: 0 | E176: 0 | F176: 0 | J176: 250424.97 | K176: Finalizada
A177: Ejecución obras recogidas en el "Proyecto de colocación automatismos y mejora red de riego Solana Matorral” | B177: 0 | C177: 15801.6 | D177: 0 | E177: 0 | F177: 0 | H177: ml | I177: 370 | J177: 15801.6 | K177: Finalizada
A178: Sustitución de tramo de la red general de agua potable Morro Jable-Solana Matorral | B178: 0 | C178: 0 | D178: 85962.77 | E178: 0 | F178: 0 | H178: ml | I178: 650 | J178: 85962.77 | K178: Finalizada
A179: Mejora Depósitos Puerto del Rosario | B179: 0 | C179: 0 | D179: 0 | E179: 0 | F179: 1573667.76 | G179: PUERTO R | H179: m3 | I179: =8167+8167+8660+8660+313+441+635+635+430 -> 36108 | J179: 1573667.76 | K179: Finalizada
A180: Mejoras Depósitos La Oliva - Betancuria | B180: 0 | C180: 0 | D180: 0 | E180: 0 | F180: 416579.64 | G180: LA OLIVA BETANCURIA | H180: m3 | I180: =162+650+42+639+593+441+1789+115+2169+260+567 -> 7427 | J180: 416579.64 | K180: Finalizada
A181: Mejoras Depósitos Antigua - Tuineje - Pájara | B181: 0 | C181: 0 | D181: 0 | E181: 0 | F181: 447213.46 | G181: ANTIGUA TUINEJE PÁJARA | H181: m3 | I181: 13009 | J181: 447213.46 | K181: Finalizada
A182: Nuevo depósito interior de regulación en la EDAM Gran Tarajal FDCAN 2021/2025 | B182: 0 | C182: 0 | D182: 0 | E182: 0 | F182: 0 | G182: TUINEJE | H182: m3 | J182: 0
A183: ACCIÓN 4: Ampliación y mejoras de conducciones de transporte y redes de distribución | B183: =SUM(B184:B200) -> 168661.08 | C183: =SUM(C190:C200) -> 0 | D183: =SUM(D190:D200) -> 0 | E183: =SUM(E184:E200) -> 3295003.07 | F183: =SUM(F184:F200) -> 220359.99 | H183: kms de Red | I183: =SUM(I185:I200) -> 30.472 | J183: =B183+C183+D183+E183+F183 -> 3684024.14 | K183: terminada parcial
A184: INFORME COSTES DE PERSONAL DIRECTO E INDIRECTO: | B184: 20339.25 | F184: =4072.97+2667.88 -> 6740.85 | J184: =B184+C184+D184+E184+F184 -> 27080.1
A185: AYTO LA OLIVA: conducción Avda Juan Carlos I | B185: 146748.29 | C185: 0 | D185: 0 | E185: 0 | F185: 0 | G185: LA OLIVA | J185: 146748.29 | K185: Finalizada
A186: Ejecutado por el Ayto de Pájara | B186: 1573.54 | C186: 0 | D186: 0 | E186: 0 | F186: 0 | G186: PÁJARA | J186: 1573.54 | K186: Finalizada
A187: Renovación y ampliación de diámetro de la red de transporte de Lajares - El Roque | B187: 0 | C187: 0 | D187: 0 | E187: 572949.7 | F187: 0 | G187: LA OLIVA | H187: kms de Red | I187: 5.422 | J187: 572949.7 | K187: Finalizada
A188: Sustitución tubería de impulsión desde la EDAM G.TARAJAL hasta la EB a Corral Blanco | B188: 0 | C188: 0 | D188: 0 | E188: 1168018.86 | F188: 0 | G188: TUINEJE | H188: kms de Red | I188: 14.04 | J188: 1168018.86 | K188: Finalizada
A189: Ampliación red de impulsión E.B. Marcos Sánchez hasta depósito Guerime | B189: 0 | C189: 0 | D189: 0 | E189: 286228.9 | F189: 0 | G189: TUINEJE | H189: kms de Red | I189: 3.84 | J189: 286228.9 | K189: Finalizada
A190: Sustitución del tramo de la red de transporte desde depósito La Herradura hasta depósito de Fimapaire, desde PK3 de la FV-1 hasta rotonda de Guisguey | B190: 0 | C190: 0 | D190: 0 | E190: 412978.67 | F190: 0 | G190: PUERTO ROSARIO | H190: kms de Red | I190: 2.54 | J190: 412978.67 | K190: Finalizada
A191: Renovación y sustitución red de transporte Fimapaire - Morro del Puerco | B191: 0 | C191: 0 | D191: 0 | E191: 652012.62 | F191: 3477.5 | H191: kms de Red | I191: 1.89 | J191: 655490.12 | K191: Finalizada
A192: Red de transporte depósito de Pájara - arqueta cruce Fayagua | B192: 0 | C192: 0 | D192: 0 | E192: 202814.32 | F192: 0 | H192: kms de Red | I192: 2.74 | J192: 202814.32 | K192: Finalizada
A193: Renovación parcial red de impulsión planta G.Tarajal a depósito Gran Tarajal pueblo FDCAN 2021/2025 | B193: 0 | C193: 0 | D193: 0 | E193: 0 | F193: 0 | J193: 0
A194: Suministro de 4 lotes de bombas y cuadros eléctricos para la red de distribución insular FDCAN 2021/2025 | B194: 0 | C194: 0 | D194: 0 | E194: 0 | F194: 0 | J194: 0
A195: Canalización impulsión planta desaladora EDAM Pto Rosario a depósito de La Herradura | B195: 0 | C195: 0 | D195: 0 | E195: 0 | F195: 210141.64 | G195: PUERTO ROSARO | H195: kms de Red | I195: 0 | J195: 210141.64 | K195: Próx. FDCAN
A196: Conducción por gravedad Guerime - Las Hermosas - La Pared FDCAN 2021/2025 | B196: 0 | C196: 0 | D196: 0 | E196: 0 | F196: 0 | J196: 0
A197: Red de distribución Gran Tarajal FDCAN 2021/2025 | B197: 0 | C197: 0 | D197: 0 | E197: 0 | F197: 0 | J197: 0
A198: Conducción por gravedad depósito Cabecera Morro Francisco Bayuyo - cruce de Lajares - Lajares FDCAN 2021/2025 | B198: 0 | C198: 0 | D198: 0 | E198: 0 | F198: 0 | J198: 0
A199: Conducción de alimentación a depósito de Tindaya TM La Oliva | B199: 0 | C199: 0 | D199: 0 | E199: 0 | F199: 0 | G199: LA OLIVA | J199: 0
A200: Proyecto de sustitución de diversas redes urbanas de distribución | B200: 0 | C200: 0 | D200: 0 | E200: 0 | F200: 0 | G200: FUERTEVENTURA | J200: 0
... 172 more rows
